fUSD/lending_fUSD_20240524
["ID","MTS","AMOUNT","RATE_DAILY","PERIOD"]
[327821464,1716509278759,156.37,0.00013973,2]
[327821465,1716509329605,505.0,0.0003,30]
[327821477,1716509431755,-1371.97255182,0.00017259,2]
[327821479,1716509431765,-1050.0,0.00021,2]
[327821481,1716509431775,-1100.0,0.00023,2]
[327821482,1716509431785,-573.355,0.000239,2]
[327821483,1716509431795,-500.0,0.00023999,2]
[327821484,1716509431805,-500.0,0.00023999,2]
[327821485,1716509431815,-472.45726553,0.00024,2]
[327821486,1716509431825,-433.1400003,0.00024,2]
[327821487,1716509431836,-397.37,0.00024161,2]
[327821488,1716509431850,-500.0,0.00024536,2]
[327821489,1716509431860,-500.0,0.00024545,2]
[327821490,1716509431870,-500.0,0.00024553,2]
[327821491,1716509431881,-500.0,0.00024562,2]
[327821492,1716509431891,-500.0,0.00024571,2]
[327821493,1716509431900,-5000.0,0.00025,7]
[327821494,1716509431910,-155.0,0.00025,2]
[327821495,1716509431921,-926.99561138,0.00025597,2]
[327821496,1716509431931,-224.3459268,0.00025598,2]
[327821497,1716509431941,-155.0,0.00025599,2]
[327821498,1716509431951,-155.0,0.00025599,2]
[327821499,1716509431965,-600.0,0.000256,2]
[327821500,1716509431975,-158.98,0.00025896,2]
[327821501,1716509431985,-400.0,0.00025985,2]
[327821502,1716509431996,-23445.03544886,0.00026,5]
[327821503,1716509432006,-250.0,0.00026063,2]
[327821504,1716509432016,-250.0,0.00026087,2]
[327821505,1716509432026,-250.0,0.00026093,2]
[327821506,1716509432036,-171.86,0.00026118,2]
[327821507,1716509432046,-397.37,0.00026425,2]
[327821508,1716509432055,-494.23680324,0.0002737,2]
[327821509,1716509432065,-805.18519156,0.0002739,2]
[327821510,1716509432075,-7854.69380717,0.00028,2]
[327821511,1716509432085,-1000.74,0.000285,2]
[327821512,1716509432094,-180.0,0.00028618,2]
[327821513,1716509432104,-397.37,0.00028689,2]
[327821514,1716509432114,-600.0,0.000288,2]
[327821515,1716509432124,-1482.6862475,0.00029,2]
[327821516,1716509432133,-12662.80967559,0.00029,5]
[327821517,1716509432143,-400.0,0.00029233,2]
[327821519,1716509432153,-151.0,0.0002937,2]
[327821521,1716509432162,-1095.42735221,0.000294,2]
[327821523,1716509432172,-1103.26308783,0.000294,2]
[327821525,1716509432181,-870.2,0.00029458,2]
[327821526,1716509432191,-415.79,0.00029458,2]
[327821527,1716509432201,-870.2,0.00029458,2]
[327821528,1716509432214,-870.2,0.00029458,2]
[327821529,1716509432224,-415.79,0.00029458,2]
[327821530,1716509432234,-868.64,0.00029458,2]
[327821531,1716509432244,-415.79,0.00029458,2]
[327821532,1716509432254,-415.79,0.00029458,2]
[327821533,1716509432263,-906.75,0.00029458,2]
[327821534,1716509432273,-225.85732283,0.000295,3]
[327821535,1716509432283,-2500.0,0.00029572,2]
[327821536,1716509432293,-1854.75802774,0.00029574,2]
[327821537,1716509432303,-150.57248995,0.00029574,2]
[327821538,1716509432312,-351.86039886,0.00029574,2]
[327821539,1716509432322,-562.29625,0.00029574,2]
[327821540,1716509432332,-157.21,0.00029662,10]
[327821541,1716509432342,-786.09,0.00029662,10]
[327821542,1716509432352,-500.0,0.00029671,2]
[327821543,1716509432362,-500.0,0.00029671,2]
[327821544,1716509432371,-500.0,0.00029671,2]
[327821545,1716509432381,-500.0,0.00029671,2]
[327821546,1716509432390,-500.0,0.00029671,2]
[327821547,1716509432400,-500.0,0.00029671,2]
[327821548,1716509432410,-322130.82691037,0.00029672,2]
[327821549,1716509432431,-5002.62750254,0.00029672,2]
[327821550,1716509432442,-1084.00000008,0.00029672,2]
[327821551,1716509432456,-1419.64059056,0.00029672,2]
[327821552,1716509432477,-654.28007,0.00029672,2]
[327821553,1716509432489,-154326.96604305,0.00029672,2]
[327821554,1716509432498,-67831.101,0.00029674,7]
[327821555,1716509432508,-225.97330101,0.00029699,2]
[327821556,1716509432518,-995.04124,0.000297,2]
[327821557,1716509432528,-200.0,0.00029759,2]
[327821558,1716509432538,-500.0,0.00029759,2]
[327821559,1716509432548,-2994.70124184,0.000299,2]
[327821560,1716509432558,-2542.0093,0.000299,2]
[327821561,1716509432568,-482.0621,0.00029945,2]
[327821562,1716509432578,-60167.0286869,0.00029987,2]
[327821563,1716509432588,-11524.6565409,0.00029987,2]
[327821564,1716509432598,-150.68,0.0002999,2]
[327821565,1716509432607,-150.68,0.0002999,2]
[327821566,1716509432617,-150.68,0.0002999,2]
[327821567,1716509432627,-150.68,0.0002999,2]
[327821568,1716509432636,-150.68,0.0002999,2]
[327821569,1716509432646,-19228.10496449,0.00029997,2]
[327821570,1716509432656,-150.01,0.00029999,2]
[327821571,1716509432666,-2052.31490479,0.00029999,2]
[327821572,1716509432676,-974.63339366,0.00029999,2]
[327821573,1716509432686,-289.0,0.0003,5]
[327821574,1716509432696,-11509.2043319,0.0003,2]
[327821575,1716509432706,-5100.0,0.0003,3]
[327821576,1716509432994,-2139.92,0.0003,3]
[327821577,1716509433003,-529.06,0.0003,4]
[327821578,1716509433013,-500.0,0.0003,4]
[327821579,1716509433022,-2000.0,0.0003,2]
[327821580,1716509433031,-5002.0,0.0003,20]
[327821581,1716509433041,-37215.77256102,0.0003,7]
[327821582,1716509433050,-442.0,0.0003,7]
[327821583,1716509433059,-500.0,0.0003,2]
[327821584,1716509433068,-500.0,0.0003,2]
[327821585,1716509433078,-346.0,0.0003,7]
[327821586,1716509433087,-763.55603967,0.0003,2]
[327821587,1716509433096,-151.0,0.0003,26]
[327821588,1716509433105,-376.50562476,0.0003,2]
[327821589,1716509433114,-599.0,0.0003,7]
[327821590,1716509433123,-2343.63542169,0.0003,4]
[327821591,1716509433132,-5052.92137619,0.0003,2]
[327821592,1716509433142,-14633.36508941,0.0003,2]
[327821593,1716509433151,-23830.32925495,0.0003,4]
[327821594,1716509433161,-19406.05997029,0.0003,4]
[327821595,1716509433170,-160.0,0.0003,2]
[327821596,1716509433179,-160.0,0.0003,2]
[327821597,1716509433188,-234.0,0.0003,2]
[327821598,1716509433198,-331.0,0.0003,7]
[327821599,1716509433209,-3274.27852364,0.0003,2]
[327821600,1716509433218,-173033.77655562,0.0003,2]
[327821601,1716509433230,-13748.32483707,0.0003,2]
[327821602,1716509433253,-18994.83989084,0.0003,2]
[327821603,1716509433286,-6637.5486,0.0003,2]
[327821612,1716509437884,-155.0,0.00025596,2]
[327821613,1716509437895,-1795.77554169,0.00029999,2]
[327821614,1716509437906,-372.22504993,0.0003,2]
[327821615,1716509437978,-2956.87263589,0.0003,2]
[327821616,1716509438100,-1071.82895737,0.0003,2]
[327821617,1716509438548,-602.584341,0.0003,2]
[327821618,1716509438561,-53354.17321083,0.0003,2]
[327821627,1716509440223,-784.79447808,0.0003,2]
[327821628,1716509440759,-338433.03144337,0.0003,2]
[327821629,1716509440771,-203.0,0.0003,2]
[327821630,1716509440782,-203.0,0.0003,2]
[327821631,1716509440791,-203.0,0.0003,2]
[327821632,1716509440803,-558.0,0.0003,7]
[327821633,1716509440812,-203.0,0.0003,2]
[327821634,1716509440822,-203.0,0.0003,2]
[327821635,1716509440831,-203.0,0.0003,2]
[327821636,1716509440844,-203.0,0.0003,2]
[327821637,1716509440854,-203.0,0.0003,2]
[327821638,1716509440863,-203.0,0.0003,2]
[327821639,1716509440873,-203.0,0.0003,2]
[327821640,1716509440884,-203.0,0.0003,2]
[327821641,1716509440894,-227.0,0.0003,2]
[327821642,1716509440904,-220.0,0.0003,2]
[327821643,1716509440915,-220.0,0.0003,2]
[327821644,1716509440928,-220.0,0.0003,2]
[327821645,1716509440939,-220.0,0.0003,2]
[327821646,1716509440949,-217.0,0.0003,2]
[327821647,1716509440961,-684.51259512,0.0003,4]
[327821648,1716509440971,-211.50623511,0.0003,4]
[327821649,1716509440981,-1611.57695351,0.0003,4]
[327821650,1716509440991,-500.0,0.0003,5]
[327821651,1716509441001,-345.51478235,0.0003,4]
[327821652,1716509441010,-338.0,0.0003,7]
[327821653,1716509441020,-206.5904331,0.0003,7]
[327821654,1716509441030,-2000.0,0.0003,2]
[327821655,1716509441040,-200.0,0.0003,2]
[327821656,1716509441051,-200.0,0.0003,2]
[327821657,1716509441060,-500.0,0.0003,2]
[327821658,1716509441071,-500.0,0.0003,2]
[327821659,1716509441083,-500.0,0.0003,2]
[327821661,1716509441094,-500.0,0.0003,2]
[327821662,1716509441103,-500.0,0.0003,2]
[327821663,1716509441114,-500.0,0.0003,2]
[327821664,1716509441124,-571.0,0.0003,18]
[327821665,1716509441134,-150.0,0.0003,7]
[327821666,1716509441146,-2000.0,0.0003,2]
[327821667,1716509441156,-150.0,0.0003,7]
[327821668,1716509441167,-200.0,0.0003,2]
[327821669,1716509441177,-150.0,0.0003,7]
[327821670,1716509441188,-328.694688,0.0003,2]
[327821671,1716509441199,-150.0,0.0003,7]
[327821672,1716509441209,-150.0,0.0003,7]
[327821673,1716509441219,-14003.08412077,0.0003,4]
[327821674,1716509441229,-150.0,0.0003,7]
[327821675,1716509441240,-150.00000001,0.0003,7]
[327821676,1716509441249,-150.0,0.0003,2]
[327821677,1716509441259,-1000.74,0.0003,2]
[327821678,1716509441269,-1150.0,0.0003,11]
[327821679,1716509441278,-275.5,0.0003,2]
[327821680,1716509441288,-300.92,0.0003,2]
[327821681,1716509441297,-150.0,0.0003,6]
[327821682,1716509441307,-207.0,0.0003,2]
[327821683,1716509441316,-2000.0,0.0003,2]
[327821684,1716509441325,-200.0,0.0003,2]
[327821685,1716509441335,-4326.7791892,0.00030007,2]
[327821686,1716509441344,-1000.74,0.00030015,2]
[327821687,1716509441354,-2069.4630181,0.0003008,4]
[327821688,1716509441363,-3294.295,0.00030081,4]
[327821689,1716509441372,-3294.295,0.00030081,4]
[327821690,1716509441382,-3294.295,0.00030081,4]
[327821691,1716509441392,-3294.296,0.00030081,4]
[327821692,1716509441401,-3294.295,0.00030081,4]
[327821693,1716509441410,-22473.39,0.00030137,2]
[327821694,1716509441420,-600.0,0.0003018,25]
[327821695,1716509441429,-150.0,0.00030213,7]
[327821696,1716509441438,-1854.7580277,0.00030221,2]
[327821697,1716509441448,-275.0,0.0003025,7]
[327821698,1716509441457,-300.0,0.00030276,2]
[327821699,1716509441467,-300.0,0.00030276,2]
[327821700,1716509441476,-524.39,0.0003028,2]
[327821701,1716509441486,-2000.0,0.000303,2]
[327821702,1716509441496,-200.0,0.000303,2]
[327821703,1716509441506,-2000.0,0.000303,2]
[327821704,1716509441515,-200.0,0.000303,2]
[327821705,1716509441525,-2000.0,0.000303,2]
[327821706,1716509441535,-200.0,0.000303,2]
[327821707,1716509441545,-152.0,0.00030322,3]
[327821708,1716509441554,-150.68,0.00030378,2]
[327821709,1716509441564,-21754.771,0.00030388,4]
[327821710,1716509441573,-21754.771,0.00030388,4]
[327821711,1716509441582,-21754.772,0.00030388,4]
[327821712,1716509441592,-21754.771,0.00030388,4]
[327821713,1716509441602,-21754.772,0.00030388,4]
[327821714,1716509441611,-2994.70124178,0.000304,2]
[327821715,1716509441621,-508.81572959,0.0003041,6]
[327821716,1716509441630,-1813.67,0.00030422,2]
[327821717,1716509441640,-415.79,0.00030422,2]
[327821718,1716509441649,-415.79,0.00030422,2]
[327821719,1716509441659,-415.79,0.00030422,2]
[327821720,1716509441668,-150.0,0.00030426,7]
[327821721,1716509441677,-996.0,0.00030438,5]
[327821722,1716509441687,-772.25585897,0.00030493,5]
[327821723,1716509441696,-571.0,0.000305,19]
[327821724,1716509441705,-150.0,0.000305,6]
[327821725,1716509441717,-150.0,0.00030558,7]
[327821726,1716509441727,-200.0,0.00030603,2]
[327821727,1716509441737,-2000.0,0.00030603,2]
[327821728,1716509441746,-200.0,0.00030603,2]
[327821729,1716509441755,-2000.0,0.00030603,2]
[327821730,1716509441765,-200.0,0.00030603,2]
[327821731,1716509441775,-150.0,0.0003064,7]
[327821732,1716509441784,-299.04252939,0.00030694,4]
[327821733,1716509441794,-547.73087551,0.00030694,30]
[327821734,1716509441803,-296.15599217,0.00030695,2]
[327821735,1716509441813,-500.0,0.00030743,15]
[327821736,1716509441822,-794.93,0.00030743,15]
[327821737,1716509441831,-73783.61332318,0.000308,2]
[327821738,1716509441844,-1536.78,0.000308,8]
[327821739,1716509441853,-150.0,0.00030853,7]
[327821740,1716509441862,-1854.7580277,0.00030869,2]
[327821741,1716509441871,-300.92,0.00030875,2]
[327821742,1716509441882,-151.0,0.00030879,2]
[327821743,1716509441891,-250.49088,0.00030879,2]
[327821744,1716509441901,-1500.0,0.0003088,28]
[327821745,1716509441910,-2994.70124178,0.000309,2]
[327821746,1716509441921,-200.0,0.00030909,2]
[327821747,1716509441931,-2000.0,0.00030909,2]
[327821748,1716509441941,-200.0,0.00030909,2]
[327821749,1716509441950,-2000.0,0.00030909,2]
[327821750,1716509441959,-200.0,0.00030909,2]
[327821751,1716509441969,-397.37,0.00030953,2]
[327821752,1716509441978,-380.0,0.0003097,2]
[327821753,1716509441988,-368.83,0.00030973,2]
[327821754,1716509441997,-380.0,0.00030978,2]
[327821755,1716509442006,-380.0,0.00030978,2]
[327821756,1716509442015,-380.0,0.00030981,2]
[327821757,1716509442024,-380.0,0.00030985,2]
[327821758,1716509442034,-150.68,0.0003099,2]
[327821759,1716509442044,-380.02,0.00030994,2]
[327821760,1716509442053,-380.0,0.00030996,2]
[327821761,1716509442062,-308.14545169,0.00030999,2]
[327821762,1716509442072,-8225.03094855,0.00031,2]
[327821763,1716509442091,-150.50410775,0.00031,4]
[327821764,1716509442101,-400.0,0.00031,2]
[327821765,1716509442111,-13412.0,0.00031,30]
[327821766,1716509442120,-1050.0,0.00031,50]
[327821767,1716509442130,-2000.0,0.00031,2]
[327821768,1716509442140,-391.0,0.00031,8]
[327821769,1716509442149,-266.0,0.00031,8]
[327821770,1716509442159,-7140.29441171,0.00031,3]
[327821771,1716509442168,-571.0,0.00031,19]
[327821772,1716509442178,-275.5,0.00031,2]
[327821773,1716509442187,-150.0,0.00031,6]
[327821774,1716509442197,-380.0,0.00031011,2]
[327821775,1716509442206,-500.0,0.00031017,15]
[327821776,1716509442217,-150.0,0.00031066,7]
[327821777,1716509442227,-150.0,0.00031115,7]
[327821778,1716509442237,-1000.0,0.00031212,2]
[327821779,1716509442247,-2000.0,0.00031218,2]
[327821780,1716509442256,-200.0,0.00031218,2]
[327821781,1716509442266,-150.0,0.00031279,7]
[327821782,1716509442275,-500.0,0.0003129,15]
[327821783,1716509442285,-302.0,0.00031398,4]
[327821784,1716509442295,-2994.70124178,0.000314,3]
[327821785,1716509442305,-150.0,0.0003145,7]
[327821786,1716509442315,-150.0,0.00031493,7]
[327821787,1716509442324,-571.0,0.000315,20]
[327821788,1716509442334,-150.0,0.000315,7]
[327821789,1716509442344,-1000.74,0.00031515,2]
[327821790,1716509442354,-1854.7580277,0.00031516,2]
[327821791,1716509442363,-1000.74,0.0003153,2]
[327821792,1716509442375,-500.0,0.00031563,15]
[327821793,1716509442387,-151.0,0.0003167,33]
[327821794,1716509442398,-150.0,0.00031673,7]
[327821795,1716509442409,-150.0,0.00031706,7]
[327821796,1716509442420,-300.92,0.0003175,2]
[327821797,1716509442431,-1235.58,0.000318,9]
[327821798,1716509442442,-500.0,0.00031836,15]
[327821799,1716509442452,-2994.70124178,0.000319,3]
[327821800,1716509442463,-150.0,0.00031919,7]
[327821801,1716509442473,-604.0,0.00031925,7]
[327821802,1716509442483,-150.68,0.0003199,2]
[327821803,1716509442492,-11405.61279172,0.00031997,2]
[327821807,1716509442914,-4395.75536144,0.00031997,2]
[327821809,1716509442928,-3426.73681133,0.00031997,2]
[327821810,1716509442939,-259.0,0.00032,5]
[327821811,1716509442948,-333.59438704,0.00032,4]
[327821812,1716509442959,-300.0,0.00032,7]
[327821813,1716509442969,-708.0,0.00032,2]
[327821814,1716509442979,-1500.0,0.00032,30]
[327821815,1716509442988,-500.0,0.00032,4]
[327821816,1716509443000,-500.0,0.00032,4]
[327821817,1716509443010,-2000.0,0.00032,2]
[327821818,1716509443020,-1472.66880163,0.00032,10]
[327821819,1716509443032,-684.30219371,0.00032,10]
[327821820,1716509443044,-3684.04912018,0.00032,10]
[327821834,1716509443578,-1354.73714116,0.00032,10]
[327821835,1716509443591,-975.50000002,0.00032,10]
[327821836,1716509443603,-1458.78306831,0.00032,10]
[327821837,1716509443615,-1107.35954127,0.00032,10]
[327821838,1716509443632,-2858.1659423,0.00032,10]
[327821839,1716509443643,-1900.50000001,0.00032,10]
[327821840,1716509443655,-3454.38078348,0.00032,10]
[327821841,1716509443668,-1049.55340793,0.00032,10]
[327821842,1716509443677,-923.86412109,0.00032,4]
[327821843,1716509443689,-24738.71700031,0.00032,4]
[327821844,1716509443701,-855.62630079,0.00032,4]
[327821845,1716509443713,-352.72799642,0.00032,4]
[327821846,1716509443729,-27167.2705859,0.00032,4]
[327821847,1716509443739,-571.0,0.00032,20]
[327821848,1716509443749,-10000.0,0.00032,4]
[327821849,1716509443758,-12744.8732248,0.00032,4]
[327821850,1716509443769,-10000.0,0.00032,4]
[327821851,1716509443778,-16141.61034718,0.00032,4]
[327821852,1716509443788,-10834.61674298,0.00032,4]
[327821853,1716509443800,-5892.81252024,0.00032,4]
[327821854,1716509443811,-5142.96750354,0.00032,4]
[327821855,1716509443820,-275.5,0.00032,2]
[327821856,1716509443830,-150.0,0.00032,7]
[327821857,1716509443843,-600.0,0.00032,2]
[327821858,1716509443852,-500.0,0.00032109,15]
[327821859,1716509443862,-150.0,0.00032132,7]
[327821860,1716509443871,-2456.61367623,0.0003215,120]
[327821861,1716509443882,-1854.7580277,0.00032163,2]
[327821862,1716509443892,-2500.0,0.00032184,2]
[327821863,1716509443901,-995.04124,0.000322,2]
[327821864,1716509443911,-150.0,0.00032231,7]
[327821865,1716509443925,-500.0,0.00032232,2]
[327821866,1716509443934,-500.3132589,0.00032232,2]
[327821867,1716509443944,-2500.0,0.00032244,2]
[327821868,1716509443954,-492.0,0.00032306,3]
[327821869,1716509443965,-150.0,0.00032346,7]
[327821870,1716509443975,-152.0,0.00032376,4]
[327821871,1716509443985,-500.0,0.00032383,15]
[327821872,1716509443994,-2994.70124178,0.000324,4]
[327821873,1716509444006,-185.0,0.00032433,2]
[327821874,1716509444016,-166.99392,0.00032462,4]
[327821875,1716509444025,-400.0,0.00032482,2]
[327821876,1716509444036,-155.0,0.000325,4]
[327821877,1716509444046,-571.0,0.000325,21]
[327821878,1716509444057,-150.0,0.000325,7]
[327821879,1716509444067,-289.0,0.00032504,10]
[327821880,1716509444076,-150.0,0.00032559,7]
[327821881,1716509444086,-168.24320969,0.0003259,2]
[327821882,1716509444096,-150.0,0.00032604,2]
[327821883,1716509444106,-300.92,0.00032625,2]
[327821884,1716509444115,-415.79,0.0003263,2]
[327821885,1716509444125,-500.0,0.00032656,15]
[327821886,1716509444135,-524.28,0.00032704,2]
[327821887,1716509444144,-524.28,0.00032704,2]
[327821888,1716509444153,-352.06,0.00032704,2]
[327821889,1716509444163,-1208.0,0.00032734,30]
[327821890,1716509444173,-157.65156,0.00032768,7]
[327821891,1716509444182,-151.0,0.00032768,7]
[327821892,1716509444192,-151.0,0.00032768,7]
[327821893,1716509444202,-150.0,0.00032772,7]
[327821894,1716509444213,-150.68,0.0003278,2]
[327821895,1716509444222,-150.0,0.00032788,7]
[327821896,1716509444231,-48847.96962392,0.0003279,2]
[327821897,1716509444243,-365.02526799,0.0003279,2]
[327821898,1716509444255,-630.87041203,0.0003279,2]
[327821899,1716509444267,-775.08045318,0.0003279,2]
[327821900,1716509444279,-452.42309582,0.0003279,2]
[327821901,1716509444291,-77856.22292938,0.0003279,2]
[327821902,1716509444300,-151.0,0.0003279,7]
[327821903,1716509444310,-151.0,0.0003279,7]
[327821904,1716509444320,-151.0,0.0003279,7]
[327821905,1716509444330,-237.119369,0.0003279,7]
[327821906,1716509444339,-151.0,0.0003279,7]
[327821907,1716509444349,-151.0,0.0003279,7]
[327821908,1716509444359,-151.0,0.0003279,7]
[327821909,1716509444368,-151.0,0.0003279,7]
[327821910,1716509444378,-151.0,0.0003279,7]
[327821911,1716509444388,-265.383651,0.0003279,7]
[327821912,1716509444398,-242.866369,0.0003279,7]
[327821913,1716509444408,-151.0,0.0003279,7]
[327821914,1716509444418,-221.410348,0.0003279,7]
[327821915,1716509444428,-278.0,0.0003279,7]
[327821916,1716509444438,-411.458551,0.0003279,7]
[327821917,1716509444448,-3541.87716984,0.000328,2]
[327821918,1716509444457,-4076.11087525,0.000328,7]
[327821919,1716509444468,-4535.94827651,0.000328,7]
[327821920,1716509444478,-186.71608802,0.000328,2]
[327821921,1716509444487,-1453.90751047,0.0003281,2]
[327821922,1716509444496,-1854.7580277,0.00032811,2]
[327821923,1716509444506,-760.6780233,0.00032876,30]
[327821924,1716509444515,-1801.75,0.00032876,2]
[327821925,1716509444524,-1801.75,0.00032876,2]
[327821926,1716509444534,-1801.75,0.00032876,2]
[327821927,1716509444545,-1801.75,0.00032876,2]
[327821928,1716509444555,-1801.75,0.00032876,2]
[327821929,1716509444564,-1801.75,0.00032876,2]
[327821930,1716509444574,-1801.75,0.00032876,2]
[327821931,1716509444584,-1725.08096103,0.00032876,2]
[327821932,1716509444597,-76.66903897,0.00032876,2]
[327821933,1716509444607,-1801.75,0.00032876,2]
[327821934,1716509444617,-1801.75,0.00032876,2]
[327821935,1716509444628,-523.33396318,0.00032876,2]
[327821936,1716509444639,-1278.41603682,0.00032876,2]
[327821937,1716509444649,-969.82504153,0.00032876,2]
[327821938,1716509444661,-831.92495847,0.00032876,2]
[327821939,1716509444671,-1801.75,0.00032876,2]
[327821940,1716509444681,-1801.75,0.00032876,2]
[327821941,1716509444691,-1801.75,0.00032876,2]
[327821942,1716509444702,-1801.75,0.00032876,2]
[327821943,1716509444712,-1801.75,0.00032876,2]
[327821944,1716509444721,-1801.75,0.00032876,2]
[327821945,1716509444730,-1801.75,0.00032876,2]
[327821946,1716509444740,-1801.75,0.00032876,2]
[327821947,1716509444750,-1801.75,0.00032876,2]
[327821948,1716509444760,-1801.75,0.00032876,2]
[327821949,1716509444770,-1801.75,0.00032876,2]
[327821950,1716509444780,-1801.8817439,0.00032876,2]
[327821951,1716509444790,-322.67,0.00032877,2]
[327821952,1716509444800,-494.0,0.00032877,13]
[327821953,1716509444810,-1750.68668713,0.00032877,2]
[327821954,1716509444823,-5607.57055296,0.00032877,2]
[327821955,1716509444836,-1356.30670095,0.00032877,2]
[327821973,1716509445779,-224.3459268,0.00029999,2]
[327821975,1716509445789,-115.50710099,0.00029999,2]
[327821976,1716509445849,-472.45726553,0.00029998,2]
[327821977,1716509445859,-39.49289901,0.00029999,2]
[327821978,1716509445868,-195.38258017,0.00029999,2]
[327821979,1716509445877,-1571.30359898,0.00029999,2]
[327821980,1716509445889,-2892.03796281,0.00030163,5]
[327821981,1716509446032,-1441.54008526,0.00030163,5]
[327821982,1716509446043,-1330.71149535,0.00030163,5]
[327821983,1716509446054,-1004.2671813,0.00030163,5]
[327821984,1716509446108,-620.53980725,0.00030163,5]
[327821988,1716509664657,158.98,0.00030491,120]
[327821989,1716509822785,152.02,0.00013973,2]
[327821990,1716510276341,151.83,0.00013973,2]
[327822002,1716510631987,-289.3455407,0.00021,2]
[327822003,1716510631999,-760.6544593,0.00021,2]
[327822004,1716510632009,-1966.0,0.000215,2]
[327822005,1716510632019,-433.1400003,0.00024,2]
[327822006,1716510632028,-472.45726553,0.00024999,2]
[327822007,1716510632037,-926.99561138,0.00025,2]
[327822008,1716510632047,-155.0,0.00025,2]
[327822009,1716510632056,-224.3459268,0.00025153,2]
[327822010,1716510632065,-155.0,0.00025154,2]
[327822011,1716510632075,-151.83,0.00025156,2]
[327822012,1716510632084,-152.02,0.00026274,2]
[327822013,1716510632094,-5000.0,0.00027389,7]
[327822014,1716510632103,-805.18519156,0.0002739,2]
[327822015,1716510632113,-317.89,0.00027729,2]
[327822016,1716510632122,-500.0,0.00027899,2]
[327822017,1716510632131,-23445.03544886,0.00027999,5]
[327822018,1716510632140,-7854.69380717,0.00028,2]
[327822019,1716510632149,-918.195036,0.000285,2]
[327822020,1716510632159,-151.0,0.0002863,2]
[327822021,1716510632168,-1482.6862475,0.00029467,2]
[327822022,1716510632177,-250.0,0.00029468,2]
[327822023,1716510632187,-250.0,0.00029491,2]
[327822024,1716510632196,-225.85732283,0.000295,3]
[327822025,1716510632206,-171.86,0.00029547,2]
[327822026,1716510632215,-160.0,0.00029637,2]
[327822027,1716510632225,-500.0,0.00029671,2]
[327822028,1716510632239,-500.0,0.00029671,2]
[327822029,1716510632248,-500.0,0.00029671,2]
[327822030,1716510632257,-500.0,0.00029671,2]
[327822031,1716510632267,-500.0,0.00029671,2]
[327822032,1716510632278,-500.0,0.00029671,2]
[327822033,1716510632286,-576.74,0.00029671,2]
[327822034,1716510632295,-500.0,0.00029671,2]
[327822035,1716510632306,-1000.0,0.00029671,2]
[327822036,1716510632316,-500.0,0.00029671,2]
[327822037,1716510632325,-500.0,0.00029671,2]
[327822038,1716510632335,-500.0,0.00029671,2]
[327822039,1716510632343,-500.0,0.00029671,2]
[327822040,1716510632353,-500.0,0.00029671,2]
[327822041,1716510632362,-250.0,0.00029688,2]
[327822042,1716510632372,-830.95568179,0.000299,2]
[327822043,1716510632381,-317.89,0.00029993,2]
[327822044,1716510632390,-425.48573179,0.0003,4]
[327822045,1716510632399,-19406.05997029,0.0003,4]
[327822046,1716510632409,-160.0,0.0003,2]